bitfinex/quotes_ETHUSD_20240603
["timestamp","ask_amount","ask_price","bid_price","bid_amount"]
[1717435637799,0.20676342,3774.0,3773.6,2.64994]
[1717435638093,2.98096079,3773.8,3773.7,1.32126577]
[1717435638296,3.76048361,3773.8,3773.7,1.32126577]
[1717435638607,0.77952282,3773.8,3773.7,1.32126577]
[1717435638926,0.83387124,3773.8,3773.7,1.79848635]
[1717435640951,0.83387124,3773.9,3773.7,1.79848635]
[1717435641113,0.83387124,3773.8,3773.7,1.79848635]
[1717435641410,0.83387124,3773.9,3773.8,2.64984]
[1717435641562,0.83387124,3773.9,3773.8,4.77210577]
[1717435642506,0.20710971,3773.9,3773.8,4.77210577]
[1717435643300,0.83349026,3773.9,3773.8,4.77210577]
[1717435643504,0.20708697,3773.9,3773.8,4.77210577]
[1717435643868,0.83351119,3773.9,3773.8,4.77210577]
[1717435644065,0.83351119,3773.9,3773.8,5.52881841]
[1717435644270,0.83351119,3773.9,3773.8,7.92141841]
[1717435644501,0.55561067,3773.9,3773.8,7.92141841]
[1717435644923,0.83351119,3774.0,3773.8,7.92141841]
[1717435645075,0.83351119,3774.0,3773.9,1.32126577]
[1717435645275,0.83351119,3774.0,3773.9,2.16112967]
[1717435645777,2.98103015,3774.3,3774.0,2.6497]
[1717435645778,0.83351119,3774.1,3774.0,2.6497]
[1717435646001,0.55554835,3774.2,3774.1,0.801]
[1717435646200,0.55554835,3774.2,3774.1,2.92270874]
[1717435647678,0.55554835,3774.2,3774.1,2.12170874]
[1717435647984,0.55554835,3774.2,3774.1,2.92270874]
[1717435651145,0.83351119,3774.4,3774.2,2.64956]
[1717435651146,0.55554835,3774.3,3774.2,2.64956]
[1717435651283,0.55554835,3774.3,3774.2,5.32905264]
[1717435651625,0.83351119,3774.4,3774.2,5.32905264]
[1717435651785,0.83351119,3774.4,3774.3,1.32126577]
[1717435652435,0.83351119,3774.5,3774.4,2.64942]
[1717435652599,0.2069291,3774.5,3774.4,3.97068577]
[1717435653121,0.83331823,3774.5,3774.4,3.97068577]
[1717435654000,0.20693708,3774.5,3774.4,3.97068577]
[1717435654520,1.3187654,3774.5,3774.4,4.77168577]
[1717435655020,0.20693708,3774.5,3774.4,4.77168577]
[1717435655532,1.3187654,3774.5,3774.4,4.77168577]
[1717435656066,0.20693708,3774.5,3774.4,4.77168577]
[1717435656409,0.8333299,3774.5,3774.4,4.77168577]
[1717435656809,1.31879636,3774.5,3774.4,4.77168577]
[1717435657824,0.20696804,3774.5,3774.4,4.77168577]
[1717435660631,1.31879636,3774.5,3774.4,3.97068577]
[1717435661373,0.20696804,3774.5,3774.4,3.97068577]
[1717435661545,0.20696804,3774.5,3774.4,4.77168577]
[1717435662180,0.20696804,3774.5,3774.4,3.97068577]
[1717435662389,0.20696804,3774.5,3774.4,4.77168577]
[1717435662553,0.20696804,3774.5,3774.4,3.97068577]
[1717435662759,0.20696804,3774.5,3774.4,4.77168577]
[1717435663334,0.83333783,3774.5,3774.4,4.77168577]
[1717435663754,0.20693388,3774.5,3774.4,4.77168577]
[1717435666899,0.83335812,3774.5,3774.4,4.77168577]
[1717435667933,0.20694691,3774.5,3774.4,4.77168577]
[1717435669945,0.83340413,3774.5,3774.4,4.77168577]
[1717435670364,0.83339142,3774.5,3774.4,4.77168577]
[1717435670968,0.83339142,3774.6,3774.4,7.34143435]
[1717435671202,1.3889498,3774.9,3774.4,8.34346858]
[1717435671203,0.55557425,3774.5,3774.4,8.34346858]
[1717435671402,0.55557425,3774.9,3774.7,2.64921]
[1717435671600,0.55557425,3774.9,3774.8,3.559021]
[1717435671800,0.55557425,3774.9,3774.8,2.758021]
[1717435672004,1.11182832,3775.1,3774.9,2.64907]
[1717435672323,0.83304088,3775.0,3774.9,3.45007]
[1717435672618,0.20677128,3775.0,3774.9,3.45007]
[1717435674916,0.83295887,3775.0,3774.9,3.45007]
[1717435675271,0.83295887,3775.0,3774.9,2.64907]
[1717435675513,0.20672894,3775.0,3774.9,3.45007]
[1717435675815,0.20672894,3775.0,3774.9,2.64907]
[1717435676035,0.20672894,3775.0,3774.9,3.45007]
[1717435676386,0.20672894,3775.0,3774.5,2.6493]
[1717435676387,2.2581,3774.9,3774.5,2.6493]
[1717435676601,0.83283121,3774.8,3774.6,2.12226577]
[1717435677111,0.20682581,3774.7,3774.6,2.12226577]
[1717435679912,0.20682581,3774.7,3774.2,2.64956]
[1717435680127,0.55525761,3774.4,3774.3,1.32126577]
[1717435680417,0.83288641,3774.4,3774.3,2.12226577]
[1717435680984,1.11182832,3774.6,3774.3,2.12226577]
[1717435680985,0.83288641,3774.5,3774.3,2.12226577]
[1717435681744,0.83288641,3774.4,3774.3,2.12226577]
[1717435682034,0.83288641,3774.5,3774.3,2.12226577]
[1717435682384,0.83288641,3774.5,3774.3,1.32126577]
[1717435682894,0.83288641,3774.4,3774.3,2.12226577]
[1717435683625,0.83288641,3774.4,3774.3,2.59944835]
[1717435683828,0.20687178,3774.5,3774.3,2.59944835]
[1717435683829,0.83288641,3774.5,3774.4,2.64942]
[1717435683976,0.83288641,3774.5,3774.4,3.97068577]
[1717435683977,0.55533604,3774.5,3774.4,3.97068577]
[1717435684403,0.55545088,3774.5,3774.4,3.97068577]
[1717435684588,0.55545088,3774.5,3774.4,4.7327326]
[1717435684994,0.55545088,3774.6,3774.4,4.7327326]
[1717435685201,0.55545088,3774.7,3774.6,2.64928]
[1717435685417,0.83288641,3774.7,3774.6,4.77154577]
[1717435685580,0.83288641,3774.7,3774.6,5.60978329]
[1717435685980,0.83288641,3774.8,3774.6,5.60978329]
[1717435686188,0.83288641,3774.8,3774.7,1.32126577]
[1717435687414,1.11182832,3774.9,3774.8,2.64914]
[1717435687720,1.31867804,3774.9,3774.8,7.5825701]
[1717435687922,2.14727765,3775.5,3774.8,10.5825701]
[1717435687923,0.55545299,3775.2,3774.8,10.5825701]
[1717435688121,0.55545299,3775.3,3775.0,3.45]
[1717435688326,0.55545299,3775.3,3775.2,3.44986]
[1717435688522,0.55545299,3775.3,3775.2,4.77112577]
[1717435688696,0.55545299,3775.3,3775.2,3.97012577]
[1717435688898,0.55545299,3775.3,3775.2,4.77112577]
[1717435689398,0.55545299,3775.4,3775.2,4.77112577]
[1717435689743,0.55545299,3775.4,3775.3,2.70520265]
[1717435691043,0.55545299,3775.5,3775.4,2.64872]
[1717435691196,0.55545299,3775.5,3775.4,4.77098577]
[1717435691938,0.83325944,3775.6,3775.4,4.77098577]
[1717435692101,0.83325944,3775.6,3775.5,1.32126577]
[1717435692505,0.83325944,3775.7,3775.5,1.32126577]
[1717435692937,0.83325944,3775.6,3775.5,1.32126577]
[1717435694443,0.13516835,3775.6,3775.5,1.32126577]
[1717435695049,1.11182832,3775.7,3775.5,1.32126577]
[1717435695215,0.83228536,3775.7,3775.5,1.32126577]
[1717435695406,0.55477689,3775.6,3775.5,1.32126577]
[1717435695605,0.83228536,3775.7,3775.5,1.32126577]
[1717435697423,0.55469543,3775.6,3775.5,1.32126577]
[1717435697624,0.55469543,3775.6,3775.5,2.12226577]
[1717435698824,0.83228536,3775.7,3775.5,2.12226577]
[1717435699457,0.5545971,3775.6,3775.5,2.12226577]
[1717435701180,3.0420971,3775.6,3775.5,1.32126577]
[1717435701385,3.0420971,3775.6,3775.4,2.64872]
[1717435701386,2.4875,3775.6,3775.4,2.64872]
[1717435701676,3.75981819,3775.6,3775.1,2.64893]
[1717435701979,0.83228536,3775.4,3775.2,1.32126577]
[1717435702364,0.83228536,3775.4,3775.2,2.12226577]
[1717435702876,0.5546215,3775.3,3775.2,2.12226577]
[1717435703049,0.5546215,3775.4,3775.3,2.64879]
[1717435703253,0.5546215,3775.4,3775.3,3.97005577]
[1717435703453,0.5546215,3775.5,3775.3,3.97005577]
[1717435703662,0.5546215,3775.5,3775.4,0.801]
[1717435704055,0.5546215,3775.5,3775.4,2.12226577]
[1717435704379,0.5546215,3775.6,3775.4,2.12226577]
[1717435704582,0.5546215,3775.6,3775.5,1.32126577]
[1717435704892,0.83228536,3775.7,3775.5,1.32126577]
[1717435705385,0.55456597,3775.6,3775.5,1.32126577]
[1717435706594,0.83228536,3775.7,3775.6,2.64858]
[1717435706795,0.83228536,3775.7,3775.6,3.96984577]
[1717435707459,1.11182832,3775.8,3775.6,3.96984577]
[1717435707688,0.13509652,3775.7,3775.6,3.96984577]
[1717435708581,0.83192157,3775.7,3775.6,3.96984577]
[1717435710105,0.83192157,3775.8,3775.6,3.96984577]
[1717435710992,3.6964172,3776.2,3775.6,3.96984577]
[1717435710993,0.83192157,3775.7,3775.6,3.96984577]
[1717435712406,1.24690586,3775.8,3775.6,3.96984577]
[1717435712614,0.13507754,3775.7,3775.6,3.96984577]
[1717435713002,0.83205634,3775.7,3775.6,3.96984577]
[1717435713403,0.13510414,3775.7,3775.6,3.96984577]
[1717435713931,0.83210587,3775.7,3775.6,3.96984577]
[1717435714431,1.11182832,3775.9,3775.6,3.96984577]
[1717435714594,0.83217093,3775.7,3775.6,3.96984577]
[1717435715218,0.13511767,3775.7,3775.6,3.96984577]
[1717435715817,3.10227179,3775.7,3775.2,2.6488]
[1717435716127,0.83228668,3775.5,3775.3,1.32126577]
[1717435716349,1.24694599,3775.6,3775.3,1.32126577]
[1717435716350,0.83228668,3775.4,3775.3,1.32126577]
[1717435717052,0.83228668,3775.5,3775.3,2.12226577]
[1717435717249,0.83228668,3775.4,3774.7,2.64921]
[1717435717461,0.55491639,3774.9,3774.7,4.77147577]
[1717435717748,0.55491639,3774.8,3774.7,4.77147577]
[1717435717913,0.55491639,3774.9,3774.7,4.77147577]
[1717435718109,0.55491639,3774.9,3774.8,1.32126577]
[1717435718352,0.55491639,3775.1,3774.9,2.64907]
[1717435718663,0.55491639,3775.1,3775.0,2.12226577]
[1717435718842,0.55491639,3775.2,3775.0,2.12226577]
[1717435719048,0.55491639,3775.2,3775.1,2.64893]
[1717435719247,0.55491639,3775.2,3775.1,3.97019577]
[1717435719417,0.83228668,3775.3,3775.1,3.97019577]
[1717435719618,0.83228668,3775.3,3775.2,1.32126577]
[1717435723373,0.13525178,3775.3,3775.2,1.32126577]
[1717435723576,1.2470801,3775.3,3775.2,1.32126577]
[1717435724091,0.13525178,3775.3,3775.2,1.32126577]
[1717435725373,1.2470801,3775.3,3775.2,1.32126577]
[1717435728356,0.13525178,3775.3,3775.2,1.32126577]
[1717435728586,1.24602847,3775.3,3775.2,2.12226577]
[1717435729415,1.24629495,3775.3,3775.2,2.12226577]
[1717435729894,0.13525178,3775.3,3775.2,2.12226577]
[1717435730395,1.24629495,3775.3,3775.2,2.12226577]
[1717435731412,0.13525178,3775.3,3775.2,4.85128535]
[1717435731707,0.83342054,3775.3,3775.2,7.50014535]
[1717435732271,0.83342054,3775.3,3775.2,6.69914535]
[1717435732477,1.24647033,3775.3,3775.2,7.50014535]
[1717435733018,0.13542716,3775.3,3775.2,5.24824535]
[1717435733311,0.13542716,3775.3,3775.2,3.97012577]
[1717435733512,1.24647033,3775.3,3775.2,3.97012577]
[1717435733919,1.24647033,3775.3,3775.2,4.77112577]
[1717435734211,1.24647033,3775.3,3775.2,3.97012577]
[1717435734417,1.24647033,3775.3,3775.2,4.77112577]
[1717435735415,1.24647033,3775.3,3775.2,3.97012577]
[1717435735607,1.24647033,3775.3,3775.2,4.77112577]
[1717435736782,0.13542716,3775.3,3775.2,3.97012577]
[1717435737417,1.5248353,3775.3,3775.2,3.97012577]
[1717435738013,2.07406823,3775.3,3774.8,2.64908]
[1717435738217,1.11166648,3775.1,3774.9,1.32126577]
[1717435738394,0.13542716,3775.0,3774.9,1.32126577]
[1717435740106,0.13542716,3775.0,3774.4,2.64936]
[1717435740300,0.83373466,3774.6,3774.5,2.12226577]
[1717435740627,0.83373466,3774.6,3774.5,1.32126577]
[1717435740628,1.24707338,3774.6,3774.5,1.32126577]
[1717435740828,1.24707338,3774.6,3774.5,2.12226577]
[1717435741126,0.13542716,3774.6,3774.5,1.32126577]
[1717435741301,0.13542716,3774.6,3774.5,2.12226577]
[1717435741507,1.24707338,3774.6,3774.5,2.12226577]
[1717435741910,0.13542716,3774.6,3774.5,2.12226577]
[1717435742396,0.83351022,3774.6,3774.5,2.12226577]
[1717435743298,0.83351022,3774.6,3774.5,1.32126577]
[1717435743534,3.28061022,3774.6,3774.5,1.32126577]
[1717435743839,3.16081765,3774.6,3774.4,2.64936]
[1717435744034,1.2468733,3774.5,3774.4,3.97062577]
[1717435744435,0.13555119,3774.5,3774.4,3.97062577]
[1717435745898,0.13555119,3774.5,3774.4,1.32126577]
[1717435746735,0.80290873,3774.5,3774.0,3.45065]
[1717435746896,0.83307072,3774.3,3774.1,1.32126577]
[1717435747922,0.55527854,3774.2,3774.1,2.12226577]
[1717435748401,0.83307072,3774.4,3774.1,2.12226577]
[1717435748600,0.55517219,3774.2,3774.1,2.12226577]
[1717435750539,0.55517219,3774.3,3774.1,2.12226577]
[1717435751003,0.55517219,3774.2,3774.1,2.12226577]
[1717435752423,0.55517219,3774.3,3774.1,2.12226577]
[1717435752849,0.55517219,3774.3,3774.1,1.32126577]
[1717435753021,0.83307072,3774.3,3774.1,1.32126577]
[1717435753346,0.83307072,3774.2,3774.1,1.32126577]
[1717435754022,0.83307072,3774.3,3774.1,1.32126577]
[1717435755016,0.83307072,3774.2,3774.1,1.32126577]
[1717435755516,2.4927,3774.1,3773.6,2.64992]
[1717435755728,0.55471028,3774.0,3773.7,1.32126577]
[1717435755906,0.83307072,3773.9,3773.7,1.32126577]
[1717435756643,0.83307072,3773.8,3773.7,1.32126577]
[1717435757023,0.83307072,3773.9,3773.7,1.32126577]
[1717435758858,0.55441127,3773.8,3773.7,1.32126577]
[1717435760419,0.55441127,3773.8,3773.2,2.6502]
[1717435760635,0.55441127,3773.8,3773.3,1.32126577]
[1717435760636,0.55441127,3773.6,3773.3,1.32126577]
[1717435761270,0.83307072,3773.5,3773.3,1.32126577]
[1717435762053,0.55436142,3773.5,3773.3,1.32126577]
[1717435762258,0.55436142,3773.4,3773.3,1.32126577]
[1717435762919,0.55436142,3773.5,3773.3,1.32126577]
[1717435763432,0.55436142,3773.4,3773.3,1.32126577]
[1717435764150,2.4997,3773.4,3772.8,2.65048]
[1717435764356,0.55391862,3773.3,3772.9,1.32126577]
[1717435765368,0.55391862,3773.5,3773.0,0.801]
[1717435765542,0.55391862,3773.5,3773.1,1.32126577]
[1717435768078,6.07794493,3773.6,3773.1,1.32126577]
[1717435768644,0.62527333,3773.5,3773.1,1.32126577]
[1717435769977,6.07794493,3773.6,3773.1,2.12226577]
[1717435770181,5.52402631,3773.6,3773.1,2.12226577]
[1717435771383,6.07794493,3773.6,3773.1,2.12226577]
[1717435771984,5.52402631,3773.6,3773.1,2.12226577]
[1717435775289,5.52402631,3773.6,3773.1,1.32126577]
[1717435775592,0.62527333,3773.5,3773.1,2.12226577]
[1717435775950,5.52402631,3773.6,3773.1,2.12226577]
[1717435776323,0.54023631,3773.6,3773.1,2.12226577]
[1717435776465,0.54023631,3773.6,3773.1,1.32126577]
[1717435778199,0.55391862,3773.7,3773.2,2.3239]
[1717435778399,0.55391862,3774.0,3773.7,2.64985]
[1717435778586,0.55391862,3774.0,3773.9,0.801]
[1717435778796,0.55391862,3774.2,3773.9,0.801]
[1717435778974,0.75846715,3774.2,3773.8,1.32126577]
[1717435779180,0.75846715,3774.2,3773.8,2.12226577]
[1717435779389,0.55391862,3774.2,3773.8,2.12226577]
[1717435781320,0.55391862,3774.2,3774.0,0.801]
[1717435782100,0.55391862,3774.1,3774.0,0.801]
[1717435783103,0.55391862,3774.1,3773.9,2.64976]
[1717435783300,0.55391862,3774.1,3774.0,0.801]
[1717435784380,0.83307072,3774.2,3774.0,0.801]
[1717435785398,0.83307072,3774.1,3774.0,0.801]
[1717435786406,0.83307072,3774.2,3774.0,0.801]
[1717435787009,0.83307072,3774.1,3774.0,0.801]
[1717435789127,0.83307072,3774.1,3774.0,2.12226577]
[1717435795329,1.11132211,3774.2,3774.0,2.12226577]
[1717435795540,0.13560286,3774.1,3774.0,2.12226577]
[1717435795956,0.83245938,3774.1,3774.0,4.77196577]
[1717435796420,0.83252412,3774.1,3774.0,4.77196577]
[1717435801414,1.66358231,3774.9,3774.0,4.77196577]
[1717435801415,0.83252412,3774.2,3774.0,7.59046235]
[1717435801625,0.83252412,3774.2,3774.1,2.12226577]
[1717435802408,0.83252412,3774.3,3774.2,2.64956]
[1717435802629,0.83252412,3774.3,3774.2,3.97082577]
[1717435802955,0.55502498,3774.3,3774.2,3.97082577]
[1717435803158,0.55502498,3774.4,3774.2,6.36782577]
[1717435803465,0.55502498,3774.4,3774.3,2.59944835]
[1717435803957,0.55502498,3774.4,3774.3,1.32126577]
[1717435804122,0.83252412,3774.5,3774.3,2.12226577]
[1717435804327,2.2527,3774.8,3774.3,2.12226577]
[1717435804328,0.83252412,3774.4,3774.3,2.12226577]
[1717435804515,2.2592,3774.3,3773.8,2.64981]
[1717435804955,0.83228654,3773.9,3773.8,2.64981]
[1717435806403,0.55491234,3774.0,3773.8,9.32855677]
[1717435806536,0.55491234,3774.3,3774.0,2.6497]
[1717435806744,0.55491234,3774.3,3774.2,4.42676577]
[1717435806926,1.38780474,3774.9,3774.2,4.42676577]
[1717435806927,0.55491234,3774.8,3774.2,4.42676577]
[1717435807265,0.55491234,3774.8,3773.8,5.702791]
[1717435807266,0.55491234,3774.8,3774.7,5.71811]
[1717435807468,1.11132211,3775.2,3774.7,5.71811]
[1717435807469,0.55491234,3774.9,3774.7,7.03937577]
[1717435807616,0.55491234,3775.0,3774.9,2.64907]
[1717435807819,0.55491234,3775.1,3775.0,0.801]
[1717435808023,1.38780474,3775.6,3775.1,2.64893]
[1717435808024,0.55491234,3775.4,3775.1,2.64893]
[1717435808255,0.55491234,3775.5,3775.3,2.64879]
[1717435808460,0.83228654,3775.6,3775.4,2.12226577]
[1717435808629,0.83228654,3775.6,3775.3,2.64879]
[1717435808962,0.83228654,3775.5,3775.3,3.97005577]
[1717435810162,0.83228654,3775.5,3774.9,2.64903]
[1717435810366,0.5539509,3775.2,3774.9,3.97029577]
[1717435810523,0.5539509,3775.1,3774.9,3.97029577]
[1717435810725,0.5539509,3775.0,3774.9,3.97029577]
[1717435811424,0.5539509,3775.1,3774.9,3.97029577]
[1717435814480,0.5539509,3775.2,3774.9,3.97029577]
[1717435815879,0.5539509,3775.2,3775.0,1.32126577]
[1717435817588,0.5539509,3775.1,3775.0,1.32126577]
[1717435818080,0.5539509,3775.2,3775.0,1.32126577]
[1717435820398,0.5539509,3775.1,3775.0,1.32126577]
[1717435821192,0.5539509,3775.2,3775.0,1.32126577]
[1717435821396,0.5539509,3775.4,3775.1,2.64893]
[1717435821647,0.5539509,3775.5,3775.2,1.32126577]
[1717435821796,0.5539509,3775.5,3775.2,2.02268131]
[1717435822146,0.5539509,3775.6,3775.3,2.64878]
[1717435822309,0.5539509,3775.6,3775.3,3.97004577]
[1717435823598,0.5539509,3775.5,3775.3,3.97004577]
[1717435824243,0.5539509,3775.5,3775.4,1.32126577]
[1717435824445,0.55398492,3775.6,3775.4,1.32126577]
[1717435826307,0.55398492,3775.5,3775.4,1.32126577]
[1717435828053,3.02018492,3775.5,3775.3,2.64878]
[1717435828256,0.55398492,3775.4,3775.3,2.64878]
[1717435828452,3.29848654,3775.5,3775.3,2.64878]
[1717435829855,0.55394269,3775.4,3775.3,2.64878]
[1717435831313,3.29848654,3775.5,3775.3,2.64878]
[1717435836373,0.83228654,3775.4,3775.3,2.64878]
[1717435836555,3.08598654,3775.4,3774.9,2.64902]
[1717435836737,3.08598654,3775.4,3774.9,3.97028577]
[1717435836738,0.55409523,3775.2,3774.9,3.97028577]
[1717435836943,0.83228654,3775.1,3774.9,3.97028577]
[1717435837443,0.83228654,3775.0,3774.9,2.64902]
[1717435838104,0.83228654,3775.0,3774.7,0.8]
[1717435838305,0.55413316,3774.8,3774.7,1.32126577]
[1717435838591,0.83228654,3774.9,3774.5,2.64929]
[1717435838743,0.55412835,3774.7,3774.6,2.12126577]
[1717435840292,3.11058654,3774.8,3774.6,1.32126577]
[1717435840593,0.83228654,3774.7,3774.6,1.32126577]
[1717435841694,0.83228654,3774.7,3774.5,2.64929]
[1717435841695,0.83228654,3774.7,3774.1,2.64959]
[1717435841990,0.55431003,3774.3,3774.2,2.12126577]
[1717435842193,0.55431003,3774.4,3774.3,2.64949]
[1717435842351,0.55439764,3774.5,3774.3,7.69343135]
[1717435842552,0.55439764,3774.5,3774.4,1.32126577]
[1717435843094,0.55439764,3774.6,3774.5,2.64935]
[1717435843405,0.55439764,3774.6,3774.5,4.77061577]
[1717435843559,0.83228654,3774.8,3774.5,5.53994491]
[1717435843560,0.55439764,3774.7,3774.5,5.53994491]
[1717435843901,0.55439764,3774.7,3774.6,2.12126577]
[1717435845562,0.83228654,3774.8,3774.7,2.64921]
[1717435847500,0.13530413,3774.8,3774.7,2.64921]
[1717435847976,0.83151552,3774.8,3774.7,2.64921]
[1717435849002,0.13529681,3774.8,3774.7,2.64921]
[1717435850290,0.13529681,3774.8,3774.7,6.46937577]
[1717435850515,0.83162586,3774.9,3774.7,7.19631335]
[1717435850722,0.83162586,3774.9,3774.8,2.12126577]
[1717435851614,0.13530512,3774.9,3774.8,2.12126577]
[1717435856116,0.83215215,3774.9,3774.8,4.77040577]
[1717435856317,0.13505118,3774.9,3774.8,5.57003011]
[1717435856493,1.24637329,3774.9,3774.8,5.57003011]
[1717435857008,0.13505118,3774.9,3774.8,5.57003011]
[1717435857405,1.24637329,3774.9,3774.8,5.57003011]
[1717435857999,0.83184212,3774.9,3774.8,5.57003011]
[1717435858209,0.83184212,3774.9,3774.8,7.92723011]
[1717435858210,0.55458721,3774.9,3774.8,7.92723011]
[1717435858523,0.83184212,3775.1,3774.8,7.92723011]
[1717435858524,0.55458721,3775.1,3774.8,7.92723011]
[1717435858708,0.55458721,3775.1,3775.0,3.449]
[1717435859063,0.55458721,3775.2,3775.0,4.77026577]
[1717435859325,0.55458721,3775.2,3775.1,2.12126577]
[1717435859514,1.11132211,3775.5,3775.2,2.64886]
[1717435859515,0.55458721,3775.3,3775.2,2.64886]
[1717435859827,0.55458721,3775.3,3775.2,4.77012577]
[1717435860031,0.55458721,3775.3,3775.2,5.55308065]
[1717435860325,0.55458721,3775.3,3775.2,7.80308065]
[1717435862189,0.55458721,3775.4,3775.2,7.80308065]
[1717435862414,0.83184212,3775.5,3775.4,2.64872]
[1717435862720,6.68e-06,3775.5,3775.4,3.96998577]
[1717435862931,8.8e-06,3776.1,3775.8,2.64844]
[1717435863101,1.38682223,3776.5,3775.4,2.15535984]
[1717435863102,1.11132211,3776.5,3775.4,2.15535984]
[1717435863301,1.11132211,3776.6,3776.2,0.8]
[1717435863516,0.11330948,3776.5,3776.4,0.8]
[1717435864046,3.47882211,3776.7,3776.4,0.8]
[1717435864258,1.11132211,3776.7,3776.4,1.32126577]
[1717435864400,1.11132211,3776.7,3776.6,0.8]
[1717435864802,2.2623,3777.0,3776.6,0.8]
[1717435865027,2.2623,3777.0,3776.8,0.8]
[1717435865771,2.2623,3777.0,3776.6,0.8]
[1717435867982,2.2623,3777.0,3776.5,1.32126577]
[1717435868751,2.2623,3777.0,3776.5,3.96914577]
[1717435870976,2.59966221,3777.0,3776.5,2.64788]
[1717435871740,0.82864096,3776.9,3776.5,2.64788]
[1717435871989,2.2543,3776.8,3776.5,2.64788]
[1717435872354,2.3113,3776.9,3776.5,2.64788]
[1717435872755,2.65903032,3776.9,3776.5,2.64788]
[1717435872955,0.55229838,3776.8,3776.5,2.64788]
[1717435873356,3.2113287,3776.9,3776.5,2.64788]
[1717435873571,2.65903032,3776.9,3776.5,2.64788]
[1717435873882,3.2113287,3776.9,3776.5,2.64788]
[1717435874244,0.43773319,3776.8,3776.1,2.64817]
[1717435874469,0.43773319,3776.8,3776.2,1.32126577]
[1717435874672,0.99003157,3776.8,3775.7,2.64846]
[1717435874880,0.99003157,3776.8,3774.8,2.2628]
[1717435874881,0.82864096,3776.3,3775.3,2.64873]
[1717435875054,0.55229838,3776.0,3774.9,2.64902]
[1717435875256,0.55229838,3775.9,3775.0,1.32126577]
[1717435875461,2.97569838,3775.8,3775.0,1.32126577]
[1717435876479,2.4234,3775.8,3775.0,1.32126577]
[1717435876986,0.55229838,3775.9,3775.0,1.71829435]
[1717435877171,0.55229838,3776.1,3775.3,2.3357]
[1717435877488,3.20028838,3776.5,3775.5,1.919]
[1717435877779,3.20028838,3776.5,3775.7,2.64849]
[1717435877994,0.55229838,3776.5,3775.8,1.32126577]
[1717435878395,3.03679838,3776.6,3775.8,1.91014135]
[1717435879096,3.03679838,3776.6,3775.9,2.64835]
[1717435879297,3.03679838,3776.6,3776.0,1.32126577]
[1717435879596,0.55229838,3776.5,3776.0,1.32126577]
[1717435880369,0.55229838,3776.5,3775.5,2.64862]
[1717435880566,0.55229838,3776.4,3775.6,1.32126577]
[1717435880966,3.20040838,3776.3,3775.6,1.32126577]
[1717435881267,0.55229838,3776.2,3775.6,1.32126577]
[1717435881477,0.55229838,3776.1,3775.6,1.32126577]
[1717435881857,0.55229838,3776.2,3775.6,1.32126577]
[1717435882893,0.55229838,3776.1,3775.7,2.64849]
[1717435883197,1.11132211,3776.5,3775.7,2.64849]
[1717435883198,0.55229838,3776.2,3775.8,1.32126577]
[1717435883570,0.55229838,3776.5,3775.8,1.32126577]
[1717435885389,0.55229838,3776.5,3775.9,2.64831]
[1717435885593,0.55229838,3776.6,3776.0,1.32126577]
[1717435885991,0.55229838,3776.7,3776.0,1.32126577]
[1717435886303,0.55229838,3776.7,3776.1,2.64819]
[1717435886468,0.55229838,3776.7,3776.2,1.32126577]
[1717435886864,0.55229838,3776.7,3776.3,2.64805]
[1717435887076,0.82864096,3776.9,3776.2,1.71821135]
[1717435887077,0.55229838,3776.9,3776.4,1.32126577]
[1717435887298,0.55229838,3776.9,3776.5,0.40944113]
[1717435887460,0.55229838,3777.1,3776.6,1.32126577]
[1717435888198,0.55229838,3777.0,3776.6,1.32126577]
[1717435889006,0.55229838,3777.1,3776.6,1.32126577]
[1717435890003,0.55229838,3777.1,3776.7,2.6478]
[1717435890204,0.55229838,3777.1,3776.7,3.08565069]
[1717435890416,0.55229838,3777.2,3776.7,3.08565069]
[1717435891292,0.55229838,3777.2,3776.7,2.6478]
[1717435894031,0.55229838,3777.3,3776.7,2.6478]
[1717435894386,0.55229838,3777.2,3776.7,2.6478]
[1717435895933,0.55229838,3777.2,3776.7,4.9049]
[1717435896289,0.55229838,3777.1,3776.7,4.9049]
[1717435900356,0.55229838,3777.1,3776.7,5.76036069]
[1717435902046,0.55229838,3777.1,3776.9,2.6476]
[1717435903330,0.55229838,3777.0,3776.9,2.6476]
[1717435905246,0.82864096,3777.1,3776.9,2.6476]
[1717435908046,0.55349502,3777.0,3776.9,2.6476]
[1717435908244,0.55349502,3777.0,3776.9,3.35574265]
[1717435908541,0.55349502,3777.2,3776.9,3.35574265]
[1717435909267,0.55349502,3777.2,3777.1,2.64753]
[1717435909416,0.82864096,3777.4,3777.1,3.96879577]
[1717435909417,0.55349502,3777.3,3777.1,3.96879577]
[1717435909618,0.55349502,3777.3,3777.2,0.46769384]
[1717435909813,0.55349502,3777.3,3777.1,3.96879577]
[1717435912952,0.55349502,3777.2,3777.1,3.96879577]
[1717435913410,0.55349502,3777.3,3777.1,3.96879577]
[1717435914517,0.55349502,3777.4,3777.1,3.96879577]
[1717435914712,0.55349502,3777.3,3777.1,3.96879577]
[1717435915112,0.55349502,3777.3,3777.1,4.62838961]
[1717435915308,0.55349502,3777.4,3777.1,4.62838961]
[1717435917271,0.55349502,3777.4,3777.1,3.96879577]
[1717435917932,0.55349502,3777.3,3777.1,3.96879577]
[1717435918369,0.55349502,3777.4,3777.1,3.96879577]
[1717435919947,0.55349502,3777.3,3777.1,3.96879577]
[1717435920475,2.89689502,3777.4,3777.1,3.96879577]
[1717435920650,0.55349502,3777.3,3777.1,3.96879577]
[1717435921543,5.07582713,3777.6,3777.1,3.96879577]
[1717435921544,0.55349502,3777.2,3777.1,3.96879577]
[1717435921959,0.55349502,3777.2,3777.1,4.76779577]
[1717435923466,0.82864096,3777.3,3777.1,4.76779577]
[1717435924995,0.55385541,3777.2,3777.1,4.76779577]
[1717435925414,0.82864096,3777.3,3777.1,4.76779577]
[1717435925769,0.55389357,3777.2,3777.1,4.76779577]
[1717435925970,0.82864096,3777.3,3777.1,4.76779577]
[1717435926392,0.82864096,3777.3,3777.1,1.32126577]
[1717435926670,0.82864096,3777.2,3777.1,2.12026577]
[1717435927776,0.09200143,3777.2,3777.1,2.12026577]
[1717435928372,1.20332354,3777.2,3777.1,2.12026577]
[1717435929024,0.09200143,3777.2,3777.1,2.12026577]
[1717435929198,0.09200143,3777.2,3777.1,4.60656577]
[1717435929401,0.83164827,3777.2,3777.1,7.97950735]
[1717435929967,0.83164827,3777.3,3777.1,7.97950735]
[1717435930169,0.83164827,3777.4,3777.3,5.05099]
[1717435930367,0.83164827,3777.4,3777.3,7.17125577]
[1717435930594,0.83164827,3777.4,3777.3,8.22567551]
[1717435934342,0.83164827,3777.4,3777.3,8.21567551]
[1717435935394,0.55486183,3777.5,3777.3,8.21567551]
[1717435935570,0.55486183,3777.6,3777.5,2.64725]
[1717435935770,0.83164827,3777.7,3777.5,4.76751577]
[1717435935991,1.11132211,3777.8,3777.7,2.64711]
[1717435936208,1.20330799,3777.8,3777.7,4.76737577]